[Event "MČR 2022 rapid"]
[Site "Turnov, Czech Republic"]
[Date "2022.09.11"]
[Round "1.1"]
[White "Vltavský, Vladimír"]
[Black "Jansa, Vlastimil"]
[Result "0-1"]
[TimeControl "2x 15 min + 5s/move"]
[WhiteElo "2102"]
[BlackElo "2452"]

1. d4 {[%clk 00:15:07]} d6 {[%clk 00:15:08]} 2. e4 {[%clk 00:15:10]} Nf6 {[%clk
00:15:12]} 3. Nc3 {[%clk 00:15:14]} g6 {[%clk 00:15:16]} 4. Nf3 {[%clk
00:15:17]} Bg7 {[%clk 00:15:19]} 5. h3 {[%clk 00:15:19]} O-O {[%clk 00:15:20]}
6. Be3 {[%emt 00:00:09]} b6 {[%clk 00:15:21]} 7. Be2 {[%clk 00:14:32]} {[%emt
00:00:50]} Bb7 {[%clk 00:15:17]} 8. Nd2 {[%clk 00:14:27]} {[%emt 00:00:09]} c5
{[%clk 00:14:57]} {[%emt 00:00:23]} 9. d5 {[%clk 00:14:16]} {[%emt 00:00:23]}
e6 {[%clk 00:14:40]} {[%emt 00:00:15]} 10. Bf3 {[%clk 00:13:27]} {[%emt
00:00:56]} exd5 {[%clk 00:14:36]} {[%emt 00:00:06]} 11. exd5 {[%clk 00:13:29]}
{[%emt 00:00:12]} Nbd7 {[%clk 00:14:32]} {[%emt 00:00:04]} 12. Nc4 {[%clk
00:13:32]} Qe7 {[%clk 00:13:42]} {[%emt 00:00:53]} 13. O-O {[%clk 00:12:43]}
{[%emt 00:00:55]} Ba6 {[%clk 00:13:36]} {[%emt 00:00:14]} 14. Be2 {[%clk
00:11:56]} {[%emt 00:01:08]} Bxc4 {[%clk 00:12:22]} {[%emt 00:01:36]} 15. Bxc4
{[%clk 00:11:56]} {[%emt 00:00:08]} a6 {[%clk 00:12:23]} 16. Re1 {[%clk
00:11:24]} {[%emt 00:00:05]} b5 {[%clk 00:11:51]} {[%emt 00:00:36]} 17. Bf1
{[%clk 00:11:07]} {[%emt 00:01:00]} Qd8 {[%clk 00:11:46]} 18. g3 {[%clk
00:09:47]} {[%emt 00:00:58]} Nb6 {[%clk 00:11:04]} {[%emt 00:00:43]} 19. Bg2
{[%clk 00:09:34]} {[%emt 00:00:18]} Nc4 {[%clk 00:11:01]} {[%emt 00:00:07]} 20.
Bc1 {[%clk 00:08:41]} {[%emt 00:00:58]} Qd7 {[%clk 00:10:43]} {[%emt 00:00:24]}
21. Rb1 {[%clk 00:08:34]} {[%emt 00:00:12]} Rfe8 {[%clk 00:10:41]} {[%emt
00:00:07]} 22. Ne2 {[%clk 00:08:08]} {[%emt 00:00:29]} Re7 {[%clk 00:10:21]}
{[%emt 00:00:27]} 23. b3 {[%clk 00:08:10]} {[%emt 00:00:06]} Nb6 {[%clk
00:10:23]} {[%emt 00:00:04]} 24. Bg5 {[%clk 00:07:47]} {[%emt 00:00:28]} h6
{[%clk 00:10:15]} {[%emt 00:00:12]} 25. Be3 {[%clk 00:07:52]} Rae8 {[%clk
00:10:10]} {[%emt 00:00:07]} 26. Qd2 {[%clk 00:06:08]} {[%emt 00:01:52]} Kh7
{[%clk 00:10:12]} 27. Nf4 {[%clk 00:05:39]} {[%emt 00:00:36]} g5 {[%clk
00:09:31]} {[%emt 00:00:42]} 28. Ne2 {[%clk 00:05:16]} {[%emt 00:00:29]} Qf5
{[%clk 00:09:23]} {[%emt 00:00:13]} 29. Qa5 {[%clk 00:05:12]} {[%emt 00:00:09]}
Nbxd5 {[%clk 00:09:13]} {[%emt 00:00:16]} 30. Qxa6 {[%clk 00:03:54]} {[%emt
00:01:22]} Nxe3 {[%clk 00:08:51]} {[%emt 00:00:26]} 31. fxe3 {[%clk 00:03:58]}
Rxe3 {[%clk 00:08:51]} {[%emt 00:00:09]} 32. Qxb5 {[%clk 00:04:00]} {[%emt
00:00:04]} Qe5 {[%clk 00:08:26]} {[%emt 00:01:10]} 33. Bf1 {[%clk 00:03:51]}
Ne4 {[%emt 00:02:25]} 0-1

[Event "MČR 2022 rapid"]
[Site "Turnov, Czech Republic"]
[Date "2022.09.11"]
[Round "1.2"]
[White "Červený, Martin"]
[Black "Zima, Jan"]
[Result "1/2-1/2"]
[TimeControl "2x 15 min + 5s/move"]
[WhiteElo "2413"]
[BlackElo "2082"]

1. d4 {[%clk 00:15:07]} Nf6 {[%clk 00:15:09]} 2. Nf3 {[%clk 00:15:10]} g6
{[%emt 00:00:05]} 3. g3 {[%clk 00:15:00]} {[%emt 00:00:04]} Bg7 {[%clk
00:15:16]} {[%emt 00:00:04]} 4. Bg2 {[%clk 00:15:04]} O-O {[%clk 00:15:19]} 5.
O-O {[%clk 00:15:07]} {[%emt 00:00:04]} d5 {[%clk 00:15:23]} 6. c4 {[%clk
00:15:10]} {[%emt 00:00:05]} dxc4 {[%clk 00:15:27]} 7. Na3 {[%clk 00:15:14]} c5
{[%clk 00:15:31]} 8. dxc5 {[%clk 00:14:41]} {[%emt 00:00:39]} Qc7 {[%clk
00:15:35]} 9. Nxc4 {[%clk 00:14:02]} {[%emt 00:00:42]} Qxc5 {[%clk 00:15:39]}
10. b3 {[%clk 00:13:42]} {[%emt 00:00:29]} Nc6 {[%clk 00:15:24]} {[%emt
00:00:17]} 11. Bb2 {[%clk 00:12:38]} {[%emt 00:01:09]} Rd8 {[%clk 00:15:16]}
{[%emt 00:00:13]} 12. Qc1 {[%clk 00:12:35]} {[%emt 00:00:10]} Qh5 {[%clk
00:13:50]} {[%emt 00:01:32]} 13. Qg5 {[%clk 00:11:30]} {[%emt 00:01:07]} Qxg5
{[%clk 00:13:19]} {[%emt 00:00:38]} 14. Nxg5 {[%clk 00:11:34]} Bg4 {[%clk
00:12:51]} {[%emt 00:00:36]} 15. Nf3 {[%clk 00:10:18]} {[%emt 00:01:19]} Rac8
{[%clk 00:12:28]} {[%emt 00:00:25]} 16. Rfd1 {[%clk 00:10:00]} {[%emt
00:00:25]} h6 {[%clk 00:10:04]} {[%emt 00:02:49]} 17. Rxd8+ {[%clk 00:09:41]}
{[%emt 00:00:06]} Rxd8 {[%clk 00:10:07]} 18. Rc1 {[%clk 00:09:44]} {[%emt
00:00:04]} Rc8 {[%clk 00:07:47]} {[%emt 00:03:47]} 19. h3 {[%clk 00:08:36]} Be6
{[%clk 00:07:43]} 20. Ba3 {[%clk 00:08:29]} {[%emt 00:00:08]} Nd5 {[%clk
00:07:15]} {[%emt 00:00:37]} 21. Bb2 {[%clk 00:07:16]} {[%emt 00:01:14]} Bxb2
{[%clk 00:06:07]} {[%emt 00:01:14]} 22. Nxb2 {[%clk 00:07:20]} Ncb4 {[%clk
00:05:06]} {[%emt 00:01:09]} 23. Rxc8+ {[%clk 00:07:01]} {[%emt 00:00:25]} Bxc8
{[%clk 00:05:09]} 24. Nd4 {[%clk 00:06:33]} {[%emt 00:00:35]} Nc3 {[%clk
00:04:20]} {[%emt 00:00:51]} 25. a3 {[%clk 00:06:22]} {[%emt 00:00:16]} e5
{[%clk 00:04:23]} {[%emt 00:00:05]} 26. axb4 {[%clk 00:04:45]} {[%emt
00:01:38]} exd4 {[%clk 00:04:27]} 27. Kf1 {[%clk 00:04:45]} {[%emt 00:00:10]}
b5 {[%clk 00:03:25]} {[%emt 00:01:04]} 28. Nd3 {[%clk 00:03:28]} {[%emt
00:01:30]} Be6 {[%clk 00:03:26]} 29. Ne5 {[%clk 00:02:39]} {[%emt 00:00:50]}
Bxb3 {[%clk 00:01:49]} {[%emt 00:01:42]} 30. Nc6 {[%clk 00:02:40]} {[%emt
00:00:06]} Bc4 {[%clk 00:01:28]} {[%emt 00:00:27]} 31. Nxd4 {[%clk 00:02:34]}
{[%emt 00:00:08]} Kf8 {[%clk 00:00:45]} {[%emt 00:00:49]} 32. Ke1 {[%clk
00:02:38]} Ke7 {[%clk 00:00:39]} {[%emt 00:00:14]} 33. Kd2 {[%clk 00:01:35]}
{[%emt 00:01:04]} Na2 {[%clk 00:00:36]} {[%emt 00:00:08]} 34. Nc6+ {[%clk
00:01:27]} {[%emt 00:00:13]} Kd6 {[%clk 00:00:39]} {[%emt 00:00:05]} 35. Nxa7
{[%clk 00:01:31]} Nxb4 {[%clk 00:00:42]} {[%emt 00:00:05]} 36. f4 {[%clk
00:01:14]} {[%emt 00:00:21]} Kc5 {[%clk 00:00:26]} {[%emt 00:00:17]} 37. e4
{[%clk 00:01:10]} {[%emt 00:00:09]} Nc6 {[%clk 00:00:21]} {[%emt 00:00:14]} 38.
Nxc6 {[%clk 00:00:33]} {[%emt 00:00:42]} Kxc6 {[%clk 00:00:25]} 39. e5+ {[%clk
00:00:36]} Kc5 {[%clk 00:00:28]} {[%emt 00:00:05]} 40. h4 {[%clk 00:00:39]} b4
{[%clk 00:00:30]} {[%emt 00:00:04]} 41. Bf3 {[%clk 00:00:35]} {[%emt 00:00:06]}
Kd4 {[%clk 00:00:33]} {[%emt 00:00:09]} 42. h5 {[%clk 00:00:34]} Kxe5 {[%emt
00:00:19]} 1/2-1/2

[Event "MČR 2022 rapid"]
[Site "Turnov, Czech Republic"]
[Date "2022.09.11"]
[Round "1.3"]
[White "Brouček, Tomáš"]
[Black "Baláček, Tadeáš"]
[Result "0-1"]
[TimeControl "2x 15 min + 5s/move"]
[WhiteElo "1953"]
[BlackElo "2247"]

1. c4 {[%clk 00:15:08]} e5 {[%clk 00:15:07]} 2. g3 {[%clk 00:15:11]} Nf6 {[%clk
00:15:10]} 3. Bg2 {[%clk 00:15:16]} d5 {[%clk 00:15:14]} 4. cxd5 Nxd5 {[%clk
00:15:17]} 5. Nc3 {[%clk 00:15:19]} Nb6 {[%clk 00:15:20]} 6. Nf3 {[%clk
00:15:19]} Nc6 {[%clk 00:15:23]} 7. O-O {[%clk 00:15:22]} Be7 {[%emt 00:00:04]}
8. a3 {[%clk 00:15:17]} O-O {[%clk 00:15:28]} 9. b4 {[%clk 00:15:19]} {[%emt
00:00:05]} Re8 {[%clk 00:15:28]} 10. b5 {[%clk 00:10:38]} {[%emt 00:04:31]} Nd4
{[%clk 00:15:30]} {[%emt 00:00:05]} 11. d3 {[%clk 00:08:26]} {[%emt 00:02:17]}
Bf8 {[%clk 00:15:15]} {[%emt 00:00:18]} 12. Bb2 {[%clk 00:08:00]} {[%emt
00:00:42]} a6 {[%clk 00:12:07]} {[%emt 00:03:02]} 13. a4 {[%clk 00:05:23]}
{[%emt 00:02:45]} axb5 {[%clk 00:11:46]} {[%emt 00:00:31]} 14. axb5 {[%clk
00:05:03]} {[%emt 00:00:16]} Rxa1 {[%clk 00:11:49]} {[%emt 00:00:21]} 15. Bxa1
{[%clk 00:04:54]} Bg4 {[%clk 00:08:46]} {[%emt 00:03:11]} 16. Nxd4 {[%clk
00:02:18]} {[%emt 00:02:37]} exd4 {[%clk 00:08:46]} {[%emt 00:00:06]} 17. Ne4
{[%clk 00:02:22]} h6 {[%clk 00:04:41]} {[%emt 00:04:06]} 18. h3 {[%clk
00:02:09]} {[%emt 00:00:21]} Be6 {[%clk 00:04:22]} {[%emt 00:00:21]} 19. Qc2
{[%clk 00:01:02]} {[%emt 00:01:14]} Bd5 {[%clk 00:03:27]} {[%emt 00:01:02]} 20.
g4 {[%clk 00:01:06]} Qd7 {[%clk 00:02:35]} {[%emt 00:00:53]} 21. f4 {[%clk
00:00:55]} {[%emt 00:00:16]} c6 {[%clk 00:01:42]} {[%emt 00:00:58]} 22. f5
{[%clk 00:00:22]} {[%emt 00:00:37]} cxb5 {[%clk 00:01:08]} {[%emt 00:00:42]} 23.
f6 {[%clk 00:00:14]} {[%emt 00:00:10]} g6 {[%clk 00:01:11]} {[%emt 00:00:06]}
24. Nc5 {[%clk 00:00:13]} {[%emt 00:00:05]} Bxc5 {[%clk 00:00:22]} {[%emt
00:00:54]} 25. Qxc5 {[%clk 00:00:17]} Bxg2 {[%clk 00:00:25]} 26. Kxg2 {[%clk
00:00:21]} Rxe2+ {[%clk 00:00:27]} {[%emt 00:00:06]} 27. Rf2 {[%clk 00:00:25]}
{[%emt 00:00:04]} Qc6+ {[%clk 00:00:08]} {[%emt 00:00:28]} 28. Qxc6 {[%clk
00:00:25]} Rxf2+ {[%clk 00:00:12]} 29. Kxf2 {[%clk 00:00:29]} {[%emt 00:00:05]}
bxc6 {[%clk 00:00:16]} 30. Bxd4 {[%clk 00:00:33]} Nd5 {[%clk 00:00:19]} 31. h4
{[%clk 00:00:11]} {[%emt 00:00:25]} Kf8 {[%clk 00:00:21]} {[%emt 00:00:12]} 32.
Ke2 {[%clk 00:00:09]} Ke8 {[%clk 00:00:23]} {[%emt 00:00:05]} 33. Kd2 {[%clk
00:00:13]} Kd7 {[%clk 00:00:27]} 34. h5 {[%clk 00:00:17]} gxh5 {[%clk
00:00:28]} {[%emt 00:00:05]} 35. gxh5 {[%clk 00:00:22]} Ke6 {[%clk 00:00:31]}
{[%emt 00:00:04]} 36. Bc5 {[%clk 00:00:14]} {[%emt 00:00:15]} Kxf6 {[%clk
00:00:31]} 37. Kc2 {[%clk 00:00:11]} {[%emt 00:00:08]} Ke5 {[%emt 00:01:02]}
0-1

[Event "MČR 2022 rapid"]
[Site "Turnov, Czech Republic"]
[Date "2022.09.11"]
[Round "1.4"]
[White "Priehoda, Vítězslav"]
[Black "Tománek, Petr"]
[Result "1-0"]
[TimeControl "2x 15 min + 5s/move"]
[WhiteElo "2292"]
[BlackElo "1969"]

1. c4 {[%clk 00:15:05]} e6 {[%clk 00:15:09]} 2. d4 {[%clk 00:15:09]} Nf6 {[%clk
00:15:12]} 3. Nf3 {[%clk 00:15:13]} d5 {[%clk 00:15:15]} 4. g3 {[%clk
00:15:16]} c6 {[%clk 00:15:09]} 5. Nbd2 {[%emt 00:00:08]} Nbd7 {[%clk
00:14:49]} 6. Bg2 {[%clk 00:15:15]} Bd6 {[%clk 00:14:51]} {[%emt 00:00:10]} 7.
O-O {[%clk 00:15:17]} O-O {[%clk 00:13:33]} {[%emt 00:01:12]} 8. Qc2 {[%clk
00:15:17]} {[%emt 00:00:06]} Re8 {[%clk 00:12:02]} {[%emt 00:01:36]} 9. b3
{[%clk 00:13:49]} {[%emt 00:01:37]} dxc4 {[%clk 00:11:00]} {[%emt 00:01:37]} 10.
Nxc4 {[%clk 00:13:52]} Bc7 {[%clk 00:10:59]} 11. Bb2 {[%clk 00:13:47]} Nf8
{[%clk 00:09:10]} {[%emt 00:01:45]} 12. e4 {[%clk 00:12:47]} {[%emt 00:00:58]}
Ng6 {[%clk 00:08:43]} {[%emt 00:00:35]} 13. Rad1 {[%clk 00:12:34]} {[%emt
00:00:15]} a5 {[%clk 00:08:00]} {[%emt 00:00:54]} 14. a3 {[%clk 00:11:03]}
{[%emt 00:01:34]} Qe7 {[%clk 00:07:02]} {[%emt 00:01:03]} 15. Rfe1 {[%clk
00:10:49]} {[%emt 00:00:15]} c5 {[%clk 00:04:46]} {[%emt 00:02:26]} 16. d5
{[%clk 00:10:09]} {[%emt 00:00:46]} exd5 {[%clk 00:03:39]} {[%emt 00:01:20]} 17.
exd5 {[%clk 00:10:11]} Qf8 {[%clk 00:02:06]} {[%emt 00:01:28]} 18. d6 {[%clk
00:08:56]} {[%emt 00:01:18]} Rxe1+ {[%clk 00:01:52]} {[%emt 00:00:21]} 19. Nxe1
{[%clk 00:08:53]} {[%emt 00:00:08]} Bd8 {[%clk 00:01:43]} {[%emt 00:00:14]} 20.
Bxf6 {[%clk 00:08:55]} {[%emt 00:00:05]} b5 {[%clk 00:01:02]} {[%emt 00:00:43]}
21. Bxa8 {[%clk 00:08:48]} {[%emt 00:00:18]} Bxf6 {[%clk 00:01:00]} {[%emt
00:00:05]} 22. Ne3 {[%clk 00:07:52]} {[%emt 00:00:57]} Bd4 {[%clk 00:00:27]}
{[%emt 00:00:37]} 23. Bg2 {[%clk 00:07:03]} {[%emt 00:00:55]} Qxd6 {[%clk
00:00:23]} {[%emt 00:00:10]} 24. Nf3 {[%clk 00:07:04]} {[%emt 00:00:18]} Ne5
{[%clk 00:00:09]} {[%emt 00:00:07]} 25. Nxd4 {[%clk 00:07:00]} {[%emt
00:00:05]} 1-0

[Event "MČR 2022 rapid"]
[Site "Turnov, Czech Republic"]
[Date "2022.09.11"]
[Round "1.5"]
[White "Štoček, Jiří"]
[Black "Buchcar, Tomáš"]
[Result "1/2-1/2"]
[TimeControl "2x 15 min + 5s/move"]
[WhiteElo "2521"]
[BlackElo "2076"]

1. e4 {[%clk 00:15:02]} c6 {[%emt 00:00:05]} 2. d4 {[%clk 00:14:53]} d5 {[%clk
00:15:10]} {[%emt 00:00:39]} 3. e5 {[%clk 00:14:27]} Bf5 {[%clk 00:15:12]} 4.
Nc3 {[%clk 00:14:27]} e6 {[%clk 00:15:13]} 5. g4 {[%clk 00:14:28]} {[%emt
00:00:12]} Bg6 {[%clk 00:15:16]} 6. Nge2 {[%clk 00:14:31]} h5 {[%clk 00:15:04]}
{[%emt 00:00:09]} 7. Nf4 {[%clk 00:14:22]} {[%emt 00:00:15]} Bh7 {[%clk
00:15:07]} {[%emt 00:00:03]} 8. Nxh5 {[%clk 00:13:54]} {[%emt 00:01:13]} c5
{[%clk 00:15:10]} 9. dxc5 {[%clk 00:11:40]} {[%emt 00:01:48]} Nc6 {[%clk
00:15:09]} 10. Bf4 {[%clk 00:10:28]} {[%emt 00:01:12]} Qa5 {[%clk 00:11:32]}
{[%emt 00:03:47]} 11. Bb5 {[%clk 00:09:31]} {[%emt 00:00:58]} O-O-O {[%clk
00:10:51]} {[%emt 00:00:50]} 12. a3 {[%clk 00:07:59]} {[%emt 00:02:10]} d4
{[%clk 00:07:00]} {[%emt 00:03:57]} 13. b4 {[%clk 00:07:58]} Nxb4 {[%clk
00:06:58]} 14. axb4 {[%clk 00:07:57]} Qxb4 {[%clk 00:07:02]} 15. Rxa7 {[%clk
00:06:51]} {[%emt 00:00:56]} Qxc3+ {[%clk 00:07:01]} {[%emt 00:00:06]} 16. Qd2
{[%clk 00:06:20]} {[%emt 00:00:32]} Bxc5 {[%clk 00:06:37]} {[%emt 00:00:30]} 17.
Ra8+ {[%clk 00:05:46]} {[%emt 00:00:39]} Kc7 {[%clk 00:06:40]} 18. Rxd8 {[%clk
00:05:42]} {[%emt 00:00:13]} Kxd8 {[%clk 00:06:40]} {[%emt 00:00:05]} 19. Qxc3
{[%clk 00:05:21]} {[%emt 00:00:23]} dxc3 {[%clk 00:06:43]} 20. Ke2 {[%clk
00:05:10]} {[%emt 00:00:18]} Ne7 {[%clk 00:06:39]} {[%emt 00:00:14]} 21. Bg5
{[%clk 00:03:37]} {[%emt 00:01:33]} Kc7 {[%clk 00:06:43]} 22. Bxe7 {[%clk
00:03:40]} {[%emt 00:00:05]} Bxe7 {[%clk 00:06:47]} 23. Rd1 {[%clk 00:03:18]}
{[%emt 00:00:27]} Bxc2 {[%clk 00:01:35]} {[%emt 00:05:17]} 24. Rc1 {[%clk
00:03:13]} {[%emt 00:00:13]} Be4 {[%clk 00:00:40]} {[%emt 00:00:56]} 25. Rxc3+
{[%clk 00:03:07]} {[%emt 00:00:11]} Kb6 {[%clk 00:00:44]} 26. Bd3 {[%clk
00:02:29]} {[%emt 00:00:45]} Bd5 {[%clk 00:00:47]} {[%emt 00:00:05]} 27. Nf4
{[%clk 00:01:24]} {[%emt 00:01:09]} Bc6 {[%clk 00:00:30]} {[%emt 00:00:19]} 28.
Rb3+ {[%clk 00:01:20]} {[%emt 00:00:09]} Kc5 {[%clk 00:00:33]} 29. h3 {[%clk
00:01:04]} {[%emt 00:00:26]} g5 {[%clk 00:00:37]} 30. Nh5 {[%clk 00:01:07]} Kd4
{[%clk 00:00:36]} {[%emt 00:00:05]} 31. Bb5 {[%clk 00:00:38]} {[%emt 00:00:42]}
Bd5 {[%clk 00:00:39]} 32. Re3 {[%clk 00:00:38]} {[%emt 00:00:08]} Ra8 {[%clk
00:00:40]} 33. Nf6 {[%clk 00:00:32]} {[%emt 00:00:08]} Ra2+ {[%clk 00:00:40]}
{[%emt 00:00:07]} 34. Kf1 {[%clk 00:00:34]} {[%emt 00:00:04]} Ra1+ {[%clk
00:00:31]} {[%emt 00:00:10]} 35. Ke2 {[%clk 00:00:34]} {[%emt 00:00:06]} Ra2+
{[%clk 00:00:15]} {[%emt 00:00:21]} 1/2-1/2

[Event "MČR 2022 rapid"]
[Site "Turnov, Czech Republic"]
[Date "2022.09.11"]
[Round "1.6"]
[White "Babička, Michal"]
[Black "Petr, Martin"]
[Result "0-1"]
[TimeControl "2x 15 min + 5s/move"]
[WhiteElo "2009"]
[BlackElo "2506"]

1. e4 {[%clk 00:15:07]} d5 {[%clk 00:15:09]} 2. exd5 Qxd5 {[%clk 00:15:12]} 3.
Nc3 {[%clk 00:15:09]} Qa5 {[%emt 00:00:24]} 4. Bc4 {[%clk 00:15:08]} Nf6 {[%clk
00:15:18]} 5. Nf3 {[%clk 00:15:04]} Bf5 {[%clk 00:15:04]} 6. O-O {[%clk
00:14:58]} {[%emt 00:00:33]} e6 {[%clk 00:15:04]} 7. d4 {[%clk 00:13:15]}
{[%emt 00:01:23]} Bb4 {[%clk 00:14:41]} {[%emt 00:00:24]} 8. Ne2 {[%clk
00:12:46]} {[%emt 00:00:37]} c6 {[%clk 00:14:23]} {[%emt 00:00:24]} 9. c3
{[%clk 00:11:52]} {[%emt 00:01:05]} Bd6 {[%clk 00:14:16]} {[%emt 00:00:10]} 10.
Bf4 {[%clk 00:11:46]} {[%emt 00:00:06]} Bxf4 {[%clk 00:14:02]} {[%emt
00:00:18]} 11. Nxf4 {[%clk 00:11:47]} {[%emt 00:00:14]} Nbd7 {[%clk 00:13:44]}
{[%emt 00:00:11]} 12. Bd3 {[%clk 00:11:24]} {[%emt 00:00:28]} Bxd3 {[%clk
00:13:07]} {[%emt 00:00:43]} 13. Nxd3 {[%clk 00:11:26]} {[%emt 00:00:05]} O-O
{[%clk 00:13:05]} {[%emt 00:00:08]} 14. Re1 {[%clk 00:10:17]} {[%emt 00:01:18]}
Rad8 {[%clk 00:12:57]} {[%emt 00:00:10]} 15. b4 {[%clk 00:09:15]} {[%emt
00:01:03]} Qc7 {[%clk 00:12:35]} {[%emt 00:00:29]} 16. a4 {[%clk 00:08:39]}
{[%emt 00:00:38]} a5 {[%clk 00:12:16]} {[%emt 00:00:23]} 17. Qb3 {[%clk
00:08:12]} {[%emt 00:01:36]} Ra8 {[%clk 00:11:53]} 18. b5 {[%clk 00:07:16]}
{[%emt 00:00:26]} c5 {[%clk 00:11:51]} {[%emt 00:00:15]} 19. Qc4 {[%clk
00:06:22]} {[%emt 00:00:51]} Rfc8 {[%clk 00:09:42]} {[%emt 00:02:33]} 20. Nfe5
{[%clk 00:03:39]} {[%emt 00:02:32]} cxd4 {[%clk 00:09:38]} {[%emt 00:00:14]} 21.
Qxc7 {[%clk 00:03:42]} Rxc7 {[%clk 00:09:41]} 22. cxd4 {[%clk 00:03:46]} Rac8
{[%clk 00:08:20]} {[%emt 00:01:25]} 23. Rac1 {[%clk 00:02:27]} {[%emt
00:01:20]} Kf8 {[%clk 00:07:44]} {[%emt 00:00:41]} 24. h3 {[%clk 00:01:54]}
{[%emt 00:00:38]} Ke7 {[%clk 00:07:25]} {[%emt 00:00:24]} 25. Kf1 {[%clk
00:01:37]} {[%emt 00:00:24]} Nd5 {[%clk 00:05:55]} {[%emt 00:01:33]} 26. Nxd7
{[%clk 00:00:22]} {[%emt 00:01:19]} Rxc1 {[%clk 00:05:55]} {[%emt 00:00:23]} 27.
Rxc1 {[%clk 00:00:25]} Rxc1+ {[%clk 00:05:58]} 28. Nxc1 {[%clk 00:00:29]} Kxd7
{[%clk 00:06:01]} 29. Nd3 {[%clk 00:00:30]} Nc3 {[%clk 00:05:15]} {[%emt
00:00:47]} 30. Nb2 {[%clk 00:00:35]} Kd6 {[%clk 00:04:27]} {[%emt 00:00:50]} 31.
Nc4+ {[%clk 00:00:39]} Kd5 {[%clk 00:04:31]} {[%emt 00:00:05]} 32. Nxa5 {[%clk
00:00:43]} b6 {[%clk 00:04:35]} 33. Nc6 {[%clk 00:00:45]} {[%emt 00:00:04]}
Nxa4 {[%clk 00:04:37]} {[%emt 00:00:04]} 34. Ke2 {[%clk 00:00:15]} {[%emt
00:00:42]} Nc3+ {[%clk 00:04:11]} {[%emt 00:00:25]} 35. Kd3 {[%clk 00:00:20]}
Nxb5 {[%clk 00:04:15]} 36. Nb4+ {[%clk 00:00:24]} Kd6 {[%clk 00:04:13]} {[%emt
00:00:14]} 37. f4 {[%clk 00:00:17]} {[%emt 00:00:06]} Nc7 {[%clk 00:03:59]}
{[%emt 00:00:16]} 38. g3 {[%clk 00:00:19]} {[%emt 00:00:05]} Nd5 {[%clk
00:03:54]} {[%emt 00:00:08]} 39. Nc2 {[%clk 00:00:20]} {[%emt 00:00:07]} b5
{[%clk 00:03:52]} {[%emt 00:00:07]} 40. Ne1 {[%clk 00:00:13]} {[%emt 00:00:09]}
Kc6 {[%clk 00:03:08]} {[%emt 00:00:50]} 41. Nf3 {[%clk 00:00:16]} f6 {[%clk
00:03:12]} 42. Nd2 {[%clk 00:00:16]} {[%emt 00:00:09]} Ne7 {[%clk 00:02:39]}
{[%emt 00:00:37]} 43. Nb3 {[%clk 00:00:14]} {[%emt 00:00:06]} Kd5 {[%clk
00:02:35]} {[%emt 00:00:09]} 44. g4 {[%clk 00:00:16]} {[%emt 00:00:10]} Ng6
{[%clk 00:02:30]} {[%emt 00:00:16]} 45. Ke3 {[%clk 00:00:15]} Kc4 {[%clk
00:02:27]} {[%emt 00:00:08]} 46. Na5+ {[%clk 00:00:09]} {[%emt 00:00:05]} Kc3
{[%clk 00:02:29]} {[%emt 00:00:04]} 47. Nc6 {[%clk 00:00:06]} {[%emt 00:00:05]}
b4 {[%clk 00:02:31]} {[%emt 00:00:05]} 48. f5 {[%clk 00:00:09]} {[%emt
00:00:04]} exf5 {[%clk 00:02:28]} {[%emt 00:00:04]} 49. gxf5 {[%clk 00:00:13]}
Nf8 {[%clk 00:02:26]} {[%emt 00:00:09]} 50. Na5 {[%clk 00:00:11]} {[%emt
00:00:05]} b3 {[%clk 00:02:29]} {[%emt 00:00:07]} 51. Nxb3 {[%clk 00:00:13]}
{[%emt 00:00:04]} Kxb3 {[%clk 00:02:32]} 52. Ke4 {[%clk 00:00:18]} Kc4 {[%clk
00:02:35]} 53. Ke5 {[%emt 00:00:17]} Kxd4+ 0-1